fUSD/lending_fUSD_20260523
["ID","MTS","AMOUNT","RATE_DAILY","PERIOD"]
[422824964,1779476716000,-515.06,0.00039764,30]
[422824962,1779476716000,-604.32,0.00039764,120]
[422824963,1779476716000,-515.06,0.00039764,30]
[422824960,1779476716000,-604.16,0.00039764,120]
[422824961,1779476716000,-604.16,0.00039764,120]
[422824958,1779476716000,-604.16,0.00039764,120]
[422824959,1779476716000,-604.16,0.00039764,120]
[422824965,1779476716000,-152.0,0.00039764,120]
[422824991,1779476717000,-500.0,0.00039764,120]
[422824988,1779476717000,-1672.65,0.00039764,120]
[422824995,1779476717000,-1041.62,0.00039764,120]
[422824989,1779476717000,-1672.72413156,0.00039764,120]
[422824992,1779476717000,-1041.62,0.00039764,120]
[422824987,1779476717000,-1672.65,0.00039764,120]
[422824990,1779476717000,-36865.50619759,0.00039764,30]
[422824986,1779476717000,-1672.65,0.00039764,120]
[422824981,1779476717000,-1672.65,0.00039764,120]
[422824985,1779476717000,-1672.65,0.00039764,120]
[422824982,1779476717000,-1672.65,0.00039764,120]
[422824983,1779476717000,-1672.65,0.00039764,120]
[422824980,1779476717000,-1672.65,0.00039764,120]
[422824979,1779476717000,-1672.65,0.00039764,120]
[422824978,1779476717000,-1672.65,0.00039764,120]
[422824977,1779476717000,-1672.65,0.00039764,120]
[422824994,1779476717000,-1041.62,0.00039764,120]
[422824984,1779476717000,-1672.65,0.00039764,120]
[422824993,1779476717000,-1041.62,0.00039764,120]
[422824997,1779476717000,-1041.62,0.00039764,120]
[422824998,1779476717000,-1041.62,0.00039764,120]
[422825015,1779476717000,-1041.75152359,0.00039764,120]
[422825013,1779476717000,-1041.62,0.00039764,120]
[422825012,1779476717000,-1041.62,0.00039764,120]
[422825011,1779476717000,-1041.62,0.00039764,120]
[422825010,1779476717000,-1041.62,0.00039764,120]
[422825009,1779476717000,-1041.62,0.00039764,120]
[422825008,1779476717000,-1041.62,0.00039764,120]
[422825006,1779476717000,-1041.62,0.00039764,120]
[422825014,1779476717000,-1041.62,0.00039764,120]
[422825005,1779476717000,-1041.62,0.00039764,120]
[422825004,1779476717000,-1041.62,0.00039764,120]
[422825001,1779476717000,-1041.62,0.00039764,120]
[422825003,1779476717000,-1041.62,0.00039764,120]
[422825002,1779476717000,-1041.62,0.00039764,120]
[422825000,1779476717000,-1041.62,0.00039764,120]
[422824996,1779476717000,-1041.62,0.00039764,120]
[422824999,1779476717000,-1041.62,0.00039764,120]
[422825007,1779476717000,-1041.62,0.00039764,120]
[422825028,1779476718000,-500.0,0.00039764,120]
[422825032,1779476718000,-500.0,0.00039764,120]
[422825033,1779476718000,-500.0,0.00039764,120]
[422825029,1779476718000,-500.0,0.00039764,120]
[422825030,1779476718000,-500.0,0.00039764,120]
[422825027,1779476718000,-500.0,0.00039764,120]
[422825031,1779476718000,-500.0,0.00039764,120]
[422825026,1779476718000,-499.40812759,0.00039764,120]
[422825023,1779476718000,-500.0,0.00039764,120]
[422825021,1779476718000,-500.0,0.00039764,120]
[422825024,1779476718000,-500.0,0.00039764,120]
[422825022,1779476718000,-500.0,0.00039764,120]
[422825019,1779476718000,-500.0,0.00039764,120]
[422825018,1779476718000,-500.0,0.00039764,120]
[422825016,1779476718000,-500.19083184,0.00039764,120]
[422825017,1779476718000,-500.0,0.00039764,120]
[422825034,1779476718000,-500.0,0.00039764,120]
[422825025,1779476718000,-500.0,0.00039764,120]
[422825035,1779476718000,-399.39703722,0.00039764,120]
[422825020,1779476718000,-500.0,0.00039764,120]
[422825038,1779476718000,-221.21163654,0.00039764,120]
[422825036,1779476718000,-500.0,0.00039764,120]
[422825055,1779476718000,-196.54842757,0.00039764,120]
[422825053,1779476718000,-163.83129706,0.00039764,120]
[422825052,1779476718000,-238.58222284,0.00039764,90]
[422825050,1779476718000,-150.05212942,0.00039764,120]
[422825054,1779476718000,-305.74753587,0.00039764,120]
[422825049,1779476718000,-173.59619423,0.00039764,120]
[422825046,1779476718000,-368.0,0.00039764,120]
[422825048,1779476718000,-229.01651296,0.00039764,120]
[422825051,1779476718000,-500.0,0.00039764,90]
[422825047,1779476718000,-223.30086094,0.00039764,120]
[422825044,1779476718000,-152.28796502,0.00039764,120]
[422825041,1779476718000,-497.51666038,0.00039764,120]
[422825043,1779476718000,-279.88584846,0.00039764,120]
[422825042,1779476718000,-151.59688304,0.00039764,120]
[422825037,1779476718000,-178.59256122,0.00039764,120]
[422825039,1779476718000,-261.72794413,0.00039764,120]
[422825040,1779476718000,-612.8746067,0.00039764,120]
[422825045,1779476718000,-152.17528741,0.00039764,120]
[422825061,1779476719000,-151.7816985,0.00039764,120]
[422825056,1779476719000,-284.67529044,0.00039764,120]
[422825057,1779476719000,-437.468072,0.00039764,120]
[422825059,1779476719000,-555.43952418,0.00039764,120]
[422825058,1779476719000,-211.82665501,0.00039764,120]
[422825060,1779476719000,-317.0324421,0.00039764,120]
[422825063,1779476719000,-500.0,0.00039764,120]
[422825062,1779476719000,-500.0,0.00039764,120]
[422825064,1779476719000,-500.0,0.00039764,120]
[422825065,1779476719000,-500.0,0.00039764,120]
[422825066,1779476719000,-500.0,0.00039764,120]
[422825068,1779476719000,-264.68045462,0.00039764,120]
[422825067,1779476719000,-500.0,0.00039764,120]
[422825069,1779476719000,-500.0,0.00039764,120]
[422825070,1779476719000,-500.0,0.00039764,120]
[422825107,1779476720000,-367.69825188,0.00039764,120]
[422825106,1779476720000,-249.25315562,0.00039764,120]
[422825105,1779476720000,-373.17288146,0.00039764,120]
[422825104,1779476720000,-227.028,0.00039764,120]
[422825103,1779476720000,-500.0,0.00039764,120]
[422825102,1779476720000,-236.27698019,0.00039764,120]
[422825101,1779476720000,-192.94311364,0.00039764,120]
[422825100,1779476720000,-500.0,0.00039764,120]
[422825098,1779476720000,-500.0,0.00039764,120]
[422825097,1779476720000,-256.8867398,0.00039764,120]
[422825109,1779476720000,-500.0,0.00039764,120]
[422825096,1779476720000,-500.0,0.00039764,120]
[422825095,1779476720000,-232.29607551,0.00039764,120]
[422825093,1779476720000,-309.91163038,0.00039764,120]
[422825094,1779476720000,-572.22981563,0.00039764,120]
[422825092,1779476720000,-150.6350627,0.00039764,120]
[422825099,1779476720000,-161.46906243,0.00039764,120]
[422825108,1779476720000,-204.57942467,0.00039764,120]
[422825122,1779476720000,-469.57892418,0.00039764,120]
[422825111,1779476720000,-431.46820185,0.00039764,120]
[422825128,1779476720000,-172.31098231,0.00039764,120]
[422825110,1779476720000,-422.52730152,0.00039764,120]
[422825127,1779476720000,-233.33848522,0.00039764,120]
[422825126,1779476720000,-3415.0,0.00039764,120]
[422825124,1779476720000,-217.63054069,0.00039764,120]
[422825123,1779476720000,-398.58322839,0.00039764,120]
[422825125,1779476720000,-432.2959,0.00039764,120]
[422825120,1779476720000,-278.01354039,0.00039764,120]
[422825119,1779476720000,-500.0,0.00039764,120]
[422825129,1779476720000,-170.85841012,0.00039764,120]
[422825117,1779476720000,-218.31,0.00039764,120]
[422825118,1779476720000,-157.06964451,0.00039764,120]
[422825116,1779476720000,-167.78959565,0.00039764,120]
[422825115,1779476720000,-177.06306564,0.00039764,120]
[422825114,1779476720000,-387.41597652,0.00039764,120]
[422825112,1779476720000,-500.0,0.00039764,120]
[422825113,1779476720000,-500.0,0.00039764,120]
[422825121,1779476720000,-199.99091129,0.00039764,120]
[422825145,1779476721000,-205.64437788,0.00039764,120]
[422825144,1779476721000,-500.0,0.00039764,120]
[422825142,1779476721000,-500.0,0.00039764,120]
[422825141,1779476721000,-362.37383147,0.00039764,120]
[422825143,1779476721000,-500.0,0.00039764,120]
[422825138,1779476721000,-640.69206635,0.00039764,120]
[422825139,1779476721000,-154.74868668,0.00039764,120]
[422825135,1779476721000,-500.0,0.00039764,120]
[422825140,1779476721000,-291.22116897,0.00039764,120]
[422825136,1779476721000,-500.0,0.00039764,120]
[422825133,1779476721000,-500.0,0.00039764,120]
[422825131,1779476721000,-202.00480464,0.00039764,120]
[422825132,1779476721000,-1539.03136505,0.00039764,120]
[422825134,1779476721000,-177.75662266,0.00039764,120]
[422825130,1779476721000,-279.0085445,0.00039764,120]
[422825137,1779476721000,-195.65125769,0.00039764,120]
[422825146,1779476721000,-204.0312537,0.00039764,120]
[422825147,1779476721000,-1531.22,0.00039764,120]
[422825151,1779476721000,-277.99373852,0.00039764,120]
[422825165,1779476721000,-289.98920603,0.00039764,120]
[422825164,1779476721000,-186.77256229,0.00039764,120]
[422825161,1779476721000,-2479.19,0.00039764,120]
[422825162,1779476721000,-153.96640826,0.00039764,120]
[422825163,1779476721000,-228.47387077,0.00039764,120]
[422825158,1779476721000,-215.86326282,0.00039764,120]
[422825159,1779476721000,-266.44668762,0.00039764,120]
[422825160,1779476721000,-184.97543611,0.00039764,120]
[422825156,1779476721000,-172.85835681,0.00039764,120]
[422825157,1779476721000,-235.16472971,0.00039764,120]
[422825148,1779476721000,-234.33415379,0.00039764,120]
[422825149,1779476721000,-177.68282519,0.00039764,120]
[422825155,1779476721000,-378.23865114,0.00039764,120]
[422825150,1779476721000,-150.37105785,0.00039764,120]
[422825154,1779476721000,-162.83180068,0.00039764,120]
[422825153,1779476721000,-350.91114877,0.00039764,120]
[422825152,1779476721000,-500.0,0.00039764,120]
[422825177,1779476722000,-158.12011572,0.00039764,120]
[422825180,1779476722000,-500.0,0.00039764,120]
[422825181,1779476722000,-630.23733797,0.00039764,120]
[422825182,1779476722000,-164.38299101,0.00039764,120]
[422825179,1779476722000,-500.0,0.00039764,120]
[422825176,1779476722000,-159.80169996,0.00039764,120]
[422825178,1779476722000,-500.0,0.00039764,120]
[422825183,1779476722000,-163.86859194,0.00039764,120]
[422825167,1779476722000,-374.37786462,0.00039764,120]
[422825173,1779476722000,-3548.6467035,0.00039764,120]
[422825171,1779476722000,-632.13611172,0.00039764,120]
[422825172,1779476722000,-239.9403628,0.00039764,60]
[422825170,1779476722000,-583.0941699,0.00039764,120]
[422825169,1779476722000,-629.2343715,0.00039764,120]
[422825168,1779476722000,-500.0,0.00039764,120]
[422825185,1779476722000,-160.72877267,0.00039764,120]
[422825166,1779476722000,-333.20354191,0.00039764,120]
[422825174,1779476722000,-156.0,0.00039764,120]
[422825184,1779476722000,-480.0,0.00039764,120]
[422825175,1779476722000,-171.33507533,0.00039764,120]
[422825188,1779476722000,-33581.5910152,0.00039764,30]
[422825186,1779476722000,-151.30272501,0.00039764,120]
[422825205,1779476722000,-12625.55926046,0.00039764,120]
[422825203,1779476722000,-151.4935354,0.00039764,120]
[422825200,1779476722000,-150.29190677,0.00039764,120]
[422825202,1779476722000,-528.31534804,0.00039764,120]
[422825201,1779476722000,-500.0,0.00039764,120]
[422825199,1779476722000,-165.40722402,0.00039764,120]
[422825198,1779476722000,-152.75098102,0.00039764,120]
[422825196,1779476722000,-155.45006362,0.00039764,120]
[422825204,1779476722000,-158.50343219,0.00039764,120]
[422825195,1779476722000,-322.57,0.00039764,120]
[422825194,1779476722000,-157.67909435,0.00039764,120]
[422825191,1779476722000,-156.73402409,0.00039764,120]
[422825193,1779476722000,-529.17998558,0.00039764,120]
[422825192,1779476722000,-153.16029558,0.00039764,120]
[422825190,1779476722000,-151.53718743,0.00039764,120]
[422825189,1779476722000,-166.45087602,0.00039764,120]
[422825197,1779476722000,-427.121125,0.00039764,120]
[422825187,1779476722000,-189.4296913,0.00039764,120]
[422825230,1779477032000,-160.7504,0.000115,2]
[422825228,1779477032000,-481.41908788,0.00011403,2]
[422825232,1779477032000,-2367.45358451,0.00011513,2]
[422825233,1779477032000,-3167.98258065,0.00011513,2]
[422825245,1779477032000,-2500.0,0.00011713,2]
[422825235,1779477032000,-1304.0,0.00011528,2]
[422825246,1779477032000,-13736.93654943,0.00011713,2]
[422825236,1779477032000,-150.0,0.00011564,2]
[422825240,1779477032000,-2000.0,0.000116,2]
[422825237,1779477032000,-150.0,0.00011564,2]
[422825238,1779477032000,-150.0,0.00011564,2]
[422825234,1779477032000,-863.69151243,0.00011513,2]
[422825241,1779477032000,-208.56682938,0.00011613,2]
[422825242,1779477032000,-170.7,0.00011681,2]
[422825231,1779477032000,-300.0,0.00011512,2]
[422825239,1779477032000,-200.0,0.00011575,2]
[422825229,1779477032000,-170.7,0.00011403,2]
[422825218,1779477032000,-1126.43,0.00010974,2]
[422825227,1779477032000,-293.04226025,0.00011394,2]
[422825243,1779477032000,-150.0,0.00011712,2]
[422825213,1779477032000,-250.0,0.00010583,2]
[422825211,1779477032000,-594.40489869,0.00010291,2]
[422825212,1779477032000,-85.57772619,0.00010291,2]
[422825210,1779477032000,-170.16582204,0.00010291,2]
[422825214,1779477032000,-989.75,0.00010651,2]
[422825215,1779477032000,-208.56682938,0.00010718,2]
[422825226,1779477032000,-277.48625205,0.0001132,2]
[422825217,1779477032000,-2000.0,0.00010878,2]
[422825219,1779477032000,-167.9,0.00011073,2]
[422825220,1779477032000,-170.7,0.00011125,2]
[422825223,1779477032000,-250.0,0.0001132,2]
[422825221,1779477032000,-304.05,0.00011312,2]
[422825225,1779477032000,-669.59750389,0.0001132,2]
[422825222,1779477032000,-1200.0,0.00011319,2]
[422825224,1779477032000,-301.31267001,0.0001132,2]
[422825216,1779477032000,-250.0,0.00010818,2]
[422825244,1779477032000,-6805.7175,0.00011713,2]
[422825249,1779477032000,-150.0,0.00011725,2]
[422825250,1779477032000,-160.0,0.00011729,2]
[422825293,1779477032000,-155.6933743,0.00011813,2]
[422825275,1779477032000,-151.0,0.0001181,2]
[422825277,1779477032000,-151.0,0.0001181,2]
[422825273,1779477032000,-151.0,0.0001181,2]
[422825291,1779477032000,-1152.7120314,0.00011813,2]
[422825299,1779477032000,-500.0,0.00011943,2]
[422825295,1779477032000,-150.0,0.00011886,2]
[422825287,1779477032000,-299920.17509308,0.00011813,2]
[422825313,1779477032000,-500.0,0.00011943,2]
[422825311,1779477032000,-500.0,0.00011943,2]
[422825301,1779477032000,-500.0,0.00011943,2]
[422825309,1779477032000,-500.0,0.00011943,2]
[422825307,1779477032000,-500.0,0.00011943,2]
[422825297,1779477032000,-3800.0,0.000119,4]
[422825303,1779477032000,-500.0,0.00011943,2]
[422825247,1779477032000,-12900.09884193,0.00011713,2]
[422825315,1779477032000,-500.0,0.00011943,2]
[422825289,1779477032000,-3638.57684932,0.00011813,2]
[422825305,1779477032000,-500.0,0.00011943,2]
[422825271,1779477032000,-1900.0,0.000118,4]
[422825283,1779477032000,-500.0,0.00011813,2]
[422825248,1779477032000,-3569.03278355,0.00011713,2]
[422825252,1779477032000,-500.0,0.00011763,2]
[422825253,1779477032000,-500.0,0.00011763,2]
[422825316,1779477032000,-500.0,0.00011943,2]
[422825257,1779477032000,-500.0,0.00011763,2]
[422825259,1779477032000,-500.0,0.00011763,2]
[422825255,1779477032000,-500.0,0.00011763,2]
[422825251,1779477032000,-208.7374384,0.00011737,2]
[422825265,1779477032000,-500.0,0.00011763,2]
[422825263,1779477032000,-500.0,0.00011763,2]
[422825267,1779477032000,-626.17123448,0.00011763,2]
[422825269,1779477032000,-150.0,0.00011779,2]
[422825279,1779477032000,-151.0,0.0001181,2]
[422825281,1779477032000,-540.3740572,0.00011812,2]
[422825285,1779477032000,-105346.6498832,0.00011813,2]
[422825261,1779477032000,-500.0,0.00011763,2]
[422825342,1779477033000,-150.0,0.00012037,2]
[422825347,1779477033000,-207.76790227,0.00012037,2]
[422825337,1779477033000,-500.0,0.00012037,2]
[422825339,1779477033000,-500.0,0.00012037,2]
[422825344,1779477033000,-500.0,0.00012037,2]
[422825343,1779477033000,-150.0,0.00012037,2]
[422825345,1779477033000,-150.0,0.00012037,2]
[422825349,1779477033000,-500.0,0.00012037,2]
[422825354,1779477033000,-500.0,0.00012037,2]
[422825357,1779477033000,-500.0,0.00012037,2]
[422825346,1779477033000,-500.0,0.00012037,2]
[422825348,1779477033000,-500.0,0.00012037,2]
[422825356,1779477033000,-500.0,0.00012037,2]
[422825353,1779477033000,-500.0,0.00012037,2]
[422825352,1779477033000,-500.0,0.00012037,2]
[422825351,1779477033000,-500.0,0.00012037,2]
[422825335,1779477033000,-167.9,0.00011987,2]
[422825350,1779477033000,-500.0,0.00012037,2]
[422825336,1779477033000,-150.0,0.00011993,2]
[422825317,1779477033000,-508.58471701,0.00011943,2]
[422825340,1779477033000,-500.0,0.00012037,2]
[422825318,1779477033000,-150.0,0.00011943,2]
[422825358,1779477033000,-500.0,0.00012037,2]
[422825320,1779477033000,-500.0,0.00011973,2]
[422825330,1779477033000,-500.0,0.00011973,2]
[422825331,1779477033000,-500.0,0.00011973,2]
[422825321,1779477033000,-500.0,0.00011973,2]
[422825319,1779477033000,-170.7,0.0001196,2]
[422825323,1779477033000,-327.76833532,0.00011973,2]
[422825341,1779477033000,-330.62898008,0.00012037,2]
[422825324,1779477033000,-357.95828969,0.00011973,2]
[422825328,1779477033000,-500.0,0.00011973,2]
[422825325,1779477033000,-500.0,0.00011973,2]
[422825326,1779477033000,-321.14694272,0.00011973,2]
[422825327,1779477033000,-500.0,0.00011973,2]
[422825329,1779477033000,-500.0,0.00011973,2]
[422825332,1779477033000,-394.46313277,0.00011973,2]
[422825334,1779477033000,-1619.33,0.00011975,2]
[422825338,1779477033000,-500.0,0.00012037,2]
[422825322,1779477033000,-377.86142894,0.00011973,2]
[422825355,1779477033000,-500.0,0.00012037,2]
[422825333,1779477033000,-500.0,0.00011973,2]
[422825362,1779477033000,-500.0,0.00012037,2]
[422825385,1779477033000,-742.0,0.00012037,2]
[422825399,1779477033000,-10923.3757517,0.00012067,2]
[422825384,1779477033000,-500.0,0.00012037,2]
[422825390,1779477033000,-742.0,0.00012037,2]
[422825387,1779477033000,-742.0,0.00012037,2]
[422825386,1779477033000,-558.89065839,0.00012037,2]
[422825388,1779477033000,-742.0,0.00012037,2]
[422825389,1779477033000,-742.0,0.00012037,2]
[422825382,1779477033000,-742.0,0.00012037,2]
[422825401,1779477033000,-10673.26187126,0.00012067,2]
[422825392,1779477033000,-742.0,0.00012037,2]
[422825394,1779477033000,-742.0,0.00012037,2]
[422825396,1779477033000,-742.0,0.00012037,2]
[422825395,1779477033000,-742.0,0.00012037,2]
[422825397,1779477033000,-742.0,0.00012037,2]
[422825398,1779477033000,-150.0,0.00012046,2]
[422825400,1779477033000,-2813.56079772,0.00012067,2]
[422825359,1779477033000,-500.0,0.00012037,2]
[422825393,1779477033000,-742.0,0.00012037,2]
[422825380,1779477033000,-222.23530632,0.00012037,2]
[422825383,1779477033000,-742.0,0.00012037,2]
[422825381,1779477033000,-742.0,0.00012037,2]
[422825366,1779477033000,-500.0,0.00012037,2]
[422825360,1779477033000,-500.0,0.00012037,2]
[422825363,1779477033000,-500.0,0.00012037,2]
[422825365,1779477033000,-500.0,0.00012037,2]
[422825361,1779477033000,-500.0,0.00012037,2]
[422825391,1779477033000,-742.0,0.00012037,2]
[422825367,1779477033000,-742.0,0.00012037,2]
[422825369,1779477033000,-500.0,0.00012037,2]
[422825379,1779477033000,-519.76469368,0.00012037,2]
[422825368,1779477033000,-353.45757412,0.00012037,2]
[422825364,1779477033000,-742.0,0.00012037,2]
[422825373,1779477033000,-500.0,0.00012037,2]
[422825370,1779477033000,-742.0,0.00012037,2]
[422825376,1779477033000,-742.0,0.00012037,2]
[422825378,1779477033000,-742.0,0.00012037,2]
[422825377,1779477033000,-499.23346716,0.00012037,2]
[422825372,1779477033000,-742.0,0.00012037,2]
[422825371,1779477033000,-500.0,0.00012037,2]
[422825375,1779477033000,-742.0,0.00012037,2]
[422825374,1779477033000,-742.0,0.00012037,2]
[422825414,1779477038000,-4315.59870349,0.00012218,2]
[422825403,1779477038000,-1049.7029918,0.00012067,2]
[422825407,1779477038000,-177.005,0.00012102,2]
[422825405,1779477038000,-500.0,0.00012087,2]
[422825406,1779477038000,-2660.4,0.00012102,2]
[422825410,1779477038000,-150.0,0.00012207,2]
[422825412,1779477038000,-5000.0,0.00012211,2]
[422825411,1779477038000,-150.0,0.00012207,2]
[422825409,1779477038000,-2968.57176226,0.00012168,2]
[422825408,1779477038000,-600.46102124,0.00012168,2]
[422825413,1779477038000,-2912.02423897,0.00012218,2]
[422825404,1779477038000,-1177.13397878,0.00012067,2]
[422825416,1779477038000,-252.66831128,0.00012229,2]
[422825421,1779477038000,-151.0,0.00012308,2]
[422825423,1779477038000,-597.83886656,0.00012311,2]
[422825420,1779477038000,-151.0,0.00012308,2]
[422825422,1779477038000,-17421.09574684,0.00012311,2]
[422825418,1779477038000,-170.7,0.00012238,2]
[422825417,1779477038000,-2000.0,0.00012237,2]
[422825419,1779477038000,-421.40572254,0.00012301,2]
[422825424,1779477038000,-1369.00371757,0.00012311,2]
[422825425,1779477038000,-3340.77734361,0.00012311,2]
[422825426,1779477038000,-673.29688777,0.00012311,2]
[422825427,1779477038000,-554.3710071,0.00012311,2]
[422825415,1779477038000,-251.36111466,0.00012229,2]
[422825652,1779477040000,-7620.00000001,0.00012311,2]
[422825650,1779477040000,-6992.88189823,0.00012311,2]
[422825696,1779477040000,-919.59991317,0.00012311,2]
[422825688,1779477040000,-49640.69201468,0.00012311,2]
[422825760,1779477041000,-612.305895,0.00012617,2]
[422825769,1779477041000,-500.0,0.00012635,2]
[422825758,1779477041000,-1642.575198,0.00012617,2]
[422825756,1779477041000,-478.341845,0.00012617,2]
[422825771,1779477041000,-150.0,0.00012635,2]
[422825774,1779477041000,-200.0,0.0001266,2]
[422825776,1779477041000,-251.36111462,0.00012674,2]
[422825778,1779477041000,-150.0,0.00012689,2]
[422825786,1779477041000,-81335.41,0.00012757,2]
[422825782,1779477041000,-304.05,0.00012726,2]
[422825780,1779477041000,-200.0,0.00012708,2]
[422825784,1779477041000,-2406.92,0.00012757,2]
[422825788,1779477041000,-729.23309311,0.00012775,2]
[422825814,1779477041000,-215.27762834,0.00012894,2]
[422825794,1779477041000,-255.0,0.00012778,2]
[422825792,1779477041000,-12900.09884184,0.00012775,2]
[422825798,1779477041000,-5700.0,0.000128,4]
[422825796,1779477041000,-200.0,0.00012787,2]
[422825800,1779477041000,-150.0,0.00012849,2]
[422825802,1779477041000,-150.0,0.00012849,2]
[422825753,1779477041000,-242.5,0.00012611,2]
[422825804,1779477041000,-153.47973256,0.00012849,2]
[422825808,1779477041000,-208.08233963,0.00012872,2]
[422825806,1779477041000,-218.01068577,0.00012872,2]
[422825815,1779477041000,-7700.0,0.000129,4]
[422825817,1779477041000,-167.9,0.00012901,2]
[422825811,1779477041000,-275.36,0.00012877,2]
[422825790,1779477041000,-13736.93654942,0.00012775,2]
[422825772,1779477041000,-420.0,0.00012644,2]
[422825740,1779477041000,-150.0,0.00012421,2]
[422825767,1779477041000,-3569.0327835,0.00012624,2]
[422825713,1779477041000,-621.69141,0.0001233,2]
[422825711,1779477041000,-621.69141,0.0001233,2]
[422825705,1779477041000,-999157.98560446,0.00012311,2]
[422825717,1779477041000,-621.69141,0.0001234,2]
[422825715,1779477041000,-621.69141,0.0001234,2]
[422825718,1779477041000,-621.69141,0.0001234,2]
[422825707,1779477041000,-169.6,0.00012329,2]
[422825720,1779477041000,-500.0,0.00012361,2]
[422825709,1779477041000,-621.69141,0.0001233,2]
[422825722,1779477041000,-150.0,0.00012367,2]
[422825724,1779477041000,-500.0,0.00012407,2]
[422825726,1779477041000,-500.0,0.00012407,2]
[422825728,1779477041000,-385.40743909,0.00012407,2]
[422825730,1779477041000,-200.0,0.00012411,2]
[422825744,1779477041000,-12900.09884184,0.00012421,2]
[422825809,1779477041000,-1500000.0,0.00012875,2]
[422825732,1779477041000,-1000.0,0.00012411,2]
[422825734,1779477041000,-758.48683559,0.00012411,2]
[422825746,1779477041000,-212.66,0.00012426,2]
[422825738,1779477041000,-201.05813237,0.00012411,2]
[422825742,1779477041000,-13736.93654942,0.00012421,2]
[422825736,1779477041000,-385.55031998,0.00012411,2]
[422825748,1779477041000,-1680.0,0.00012451,2]
[422825750,1779477041000,-150.0,0.00012528,2]
[422825752,1779477041000,-200.0,0.00012535,2]
[422825763,1779477041000,-825.667639,0.00012617,2]
[422825765,1779477041000,-841.639874,0.00012617,2]
[422825755,1779477041000,-230.350348,0.00012617,2]
[422825819,1779477041000,-200.0,0.00012915,2]
[422825909,1779477041000,-251.36111462,0.00013119,2]
[422825821,1779477041000,-7704.76951129,0.00012974,2]
[422825879,1779477041000,-500.0,0.00013052,2]
[422825896,1779477041000,-500.0,0.00013052,2]
[422825898,1779477041000,-500.0,0.00013052,2]
[422825882,1779477041000,-500.0,0.00013052,2]
[422825911,1779477041000,-13736.93654942,0.00013129,2]
[422825903,1779477041000,-639.0,0.00013068,5]
[422825900,1779477041000,-500.0,0.00013052,2]
[422825916,1779477041000,-752.0,0.00013138,5]
[422825921,1779477041000,-3130.47833082,0.00013197,2]
[422825918,1779477041000,-716.0,0.00013138,5]
[422825905,1779477041000,-3569.0327835,0.00013079,2]
[422825914,1779477041000,-12900.09884184,0.00013129,2]
[422825923,1779477041000,-500.0,0.00013326,2]
[422825925,1779477041000,-500.0,0.00013326,2]
[422825927,1779477041000,-500.0,0.00013326,2]
[422825936,1779477041000,-166.66,0.00013392,2]
[422825930,1779477041000,-500.0,0.00013326,2]
[422825934,1779477041000,-414.61492121,0.00013326,2]
[422825943,1779477041000,-13736.93654942,0.00013484,2]
[422825932,1779477041000,-500.0,0.00013326,2]
[422825947,1779477041000,-3569.0327835,0.00013534,2]
[422825938,1779477041000,-163.0,0.000134,2]
[422825940,1779477041000,-3153.76218021,0.00013444,2]
[422825945,1779477041000,-12900.09884184,0.00013484,2]
[422825949,1779477041000,-251.36111462,0.00013565,2]
[422825951,1779477041000,-252.66831127,0.00013565,2]
[422825826,1779477041000,-150.0,0.00013052,2]
[422825892,1779477041000,-161.40719266,0.00013052,2]
[422825894,1779477041000,-500.0,0.00013052,2]
[422825907,1779477041000,-200.0,0.00013108,2]
[422825888,1779477041000,-500.0,0.00013052,2]
[422825890,1779477041000,-500.0,0.00013052,2]